[Event "Titled Tuesday Blitz August 1 Early 2023"]
[White "Rahman, Masruri"]
[Black "Aggelis, Nikolaos"]
[WhiteFideId "7101163"]
[BlackFideId "4213220"]
[WhiteElo "2775"]
[BlackElo "2540"]
[Result "1-0"]
[Round "5"]
[TimeControl "180+1"]
[Date "2023.08.01"]
[WhiteClock "0:00:05"]
[BlackClock "0:00:00"]
[Board "71"]

1. d4 {[%clk 0:03:00]}  f5 {[%clk 0:02:49]} 2. e4 {[%clk 0:02:54]}  fxe4 {[%clk 0:02:47]} 3. Nc3 {[%clk 0:02:55]}  Nf6 {[%clk 0:02:46]} 4. Bg5 {[%clk 0:02:54]}  e6 {[%clk 0:02:45]} 5. Nxe4 {[%clk 0:02:46]}  Be7 {[%clk 0:02:45]} 6. Bxf6 {[%clk 0:02:41]}  Bxf6 {[%clk 0:02:45]} 7. Nf3 {[%clk 0:02:42]}  O-O {[%clk 0:02:46]} 8. Bd3 {[%clk 0:02:41]}  Nc6 {[%clk 0:02:37]} 9. c3 {[%clk 0:02:33]}  d5 {[%clk 0:02:34]} 10. Nxf6+ {[%clk 0:02:29]}  Qxf6 {[%clk 0:02:34]} 11. Qe2 {[%clk 0:02:28]}  Re8 {[%clk 0:02:31]} 12. Ne5 {[%clk 0:02:14]}  Nxe5 {[%clk 0:02:26]} 13. dxe5 {[%clk 0:02:09]}  Qh6 {[%clk 0:02:26]} 14. O-O {[%clk 0:02:05]}  Rf8 {[%clk 0:02:25]} 15. f4 {[%clk 0:01:42]}  Bd7 {[%clk 0:02:24]} 16. Qe3 {[%clk 0:01:05]}  b6 {[%clk 0:02:12]} 17. Rf3 {[%clk 0:01:04]}  g6 {[%clk 0:02:10]} 18. Raf1 {[%clk 0:01:02]}  Rf7 {[%clk 0:02:05]} 19. Rh3 {[%clk 0:00:59]}  Qf8 {[%clk 0:02:05]} 20. Rg3 {[%clk 0:00:49]}  Qc5 {[%clk 0:02:04]} 21. Qxc5 {[%clk 0:00:47]}  bxc5 {[%clk 0:02:05]} 22. b3 {[%clk 0:00:46]}  a5 {[%clk 0:02:04]} 23. h4 {[%clk 0:00:44]}  Rg7 {[%clk 0:01:50]} 24. c4 {[%clk 0:00:24]}  d4 {[%clk 0:01:46]} 25. Be4 {[%clk 0:00:24]}  Rb8 {[%clk 0:01:41]} 26. a4 {[%clk 0:00:25]}  Bc8 {[%clk 0:01:29]} 27. Kf2 {[%clk 0:00:24]}  Bb7 {[%clk 0:01:29]} 28. Bc2 {[%clk 0:00:22]}  Rf8 {[%clk 0:01:26]} 29. Ke2 {[%clk 0:00:18]}  Rgf7 {[%clk 0:01:23]} 30. Rg4 {[%clk 0:00:14]}  Kh8 {[%clk 0:01:15]} 31. g3 {[%clk 0:00:11]}  Bc6 {[%clk 0:00:50]} 32. Rf2 {[%clk 0:00:10]}  Rg7 {[%clk 0:00:35]} 33. Rh2 {[%clk 0:00:11]}  Kg8 {[%clk 0:00:35]} 34. h5 {[%clk 0:00:10]}  gxh5 {[%clk 0:00:35]} 35. Rxg7+ {[%clk 0:00:11]}  Kxg7 {[%clk 0:00:36]} 36. Rxh5 {[%clk 0:00:12]}  h6 {[%clk 0:00:36]} 37. Rh4 {[%clk 0:00:11]}  Be8 {[%clk 0:00:31]} 38. Rg4+ {[%clk 0:00:11]}  Kh8 {[%clk 0:00:31]} 39. Rh4 {[%clk 0:00:12]}  Kg7 {[%clk 0:00:31]} 40. Be4 {[%clk 0:00:10]}  Rg8 {[%clk 0:00:20]} 41. Kf3 {[%clk 0:00:10]}  Bg6 {[%clk 0:00:19]} 42. Rg4 {[%clk 0:00:10]}  Kf7 {[%clk 0:00:19]} 43. Bxg6+ {[%clk 0:00:08]}  Rxg6 {[%clk 0:00:20]} 44. Rh4 {[%clk 0:00:09]}  Kg7 {[%clk 0:00:20]} 45. Rh2 {[%clk 0:00:09]}  Kh7 {[%clk 0:00:20]} 46. g4 {[%clk 0:00:10]}  Kg7 {[%clk 0:00:19]} 47. f5 {[%clk 0:00:10]}  Rg5 {[%clk 0:00:18]} 48. Kf4 {[%clk 0:00:10]}  Kh7 {[%clk 0:00:17]} 49. fxe6 {[%clk 0:00:10]}  Kg7 {[%clk 0:00:18]} 50. e7 {[%clk 0:00:09]}  Kf7 {[%clk 0:00:18]} 51. Rxh6 {[%clk 0:00:10]}  Rg8 {[%clk 0:00:18]} 52. Rh7+ {[%clk 0:00:10]}  Ke8 {[%clk 0:00:18]} 53. Kf5 {[%clk 0:00:10]}  c6 {[%clk 0:00:17]} 54. Ke6 {[%clk 0:00:10]}  Rg6+ {[%clk 0:00:16]} 55. Kf5 {[%clk 0:00:10]}  Rg8 {[%clk 0:00:16]} 56. g5 {[%clk 0:00:10]}  d3 {[%clk 0:00:17]} 57. Rh3 {[%clk 0:00:11]}  d2 {[%clk 0:00:10]} 58. Rd3 {[%clk 0:00:11]}  Kxe7 {[%clk 0:00:10]} 59. Rxd2 {[%clk 0:00:11]}  Rf8+ {[%clk 0:00:10]} 60. Ke4 {[%clk 0:00:11]}  Rb8 {[%clk 0:00:11]} 61. Rd3 {[%clk 0:00:09]}  Kf7 {[%clk 0:00:11]} 62. Rf3+ {[%clk 0:00:07]}  Kg6 {[%clk 0:00:11]} 63. Rf6+ {[%clk 0:00:08]}  Kxg5 {[%clk 0:00:12]} 64. Rxc6 {[%clk 0:00:09]}  Rxb3 {[%clk 0:00:12]} 65. Rxc5 {[%clk 0:00:09]}  Rb4 {[%clk 0:00:13]} 66. Rxa5 {[%clk 0:00:08]}  Rxc4+ {[%clk 0:00:13]} 67. Kd5 {[%clk 0:00:09]}  Rc1 {[%clk 0:00:13]} 68. Kd6 {[%clk 0:00:10]}  Kg6 {[%clk 0:00:13]} 69. e6 {[%clk 0:00:10]}  Kf6 {[%clk 0:00:14]} 70. e7 {[%clk 0:00:08]}  Re1 {[%clk 0:00:12]} 71. Ra7 {[%clk 0:00:05]}  Kf7 {[%clk 0:00:10]} 72. Kc5 {[%clk 0:00:04]}  Ke8 {[%clk 0:00:09]} 73. a5 {[%clk 0:00:05]}  Rc1+ {[%clk 0:00:09]} 74. Kb5 {[%clk 0:00:05]}  Rb1+ {[%clk 0:00:09]} 75. Ka6 {[%clk 0:00:05]}  Rb2 {[%clk 0:00:09]} 76. Rb7 {[%clk 0:00:05]}  Ra2 {[%clk 0:00:09]} 77. Kb6 {[%clk 0:00:06]}  Rb2+ {[%clk 0:00:08]} 78. Ka7 {[%clk 0:00:06]}  Ra2 {[%clk 0:00:07]} 79. a6 {[%clk 0:00:06]}  Ra1 {[%clk 0:00:08]} 80. Kb6 {[%clk 0:00:06]}  Rb1+ {[%clk 0:00:08]} 81. Kc7 {[%clk 0:00:05]}  Rc1+ {[%clk 0:00:08]} 82. Kb8 {[%clk 0:00:05]}  Ra1 {[%clk 0:00:00]} 83. a7 {[%clk 0:00:05]} 1-0


[Site "https://www.chess.com"]

[Event "Titled Tuesday Blitz August 1 Early 2023"]
[White "carokannlover213"]
[Black "Ismagilov, Damir"]
[BlackFideId "34199982"]
[WhiteElo "2739"]
[BlackElo "2538"]
[Result "1-0"]
[Round "5"]
[TimeControl "180+1"]
[Date "2023.08.01"]
[WhiteClock "0:00:06"]
[BlackClock "0:00:02"]
[Board "73"]

1. e4 {[%clk 0:03:00]}  c5 {[%clk 0:02:59]} 2. Nf3 {[%clk 0:03:01]}  d6 {[%clk 0:02:59]} 3. Bb5+ {[%clk 0:03:01]}  Nd7 {[%clk 0:02:59]} 4. a4 {[%clk 0:03:00]}  Nf6 {[%clk 0:02:57]} 5. Nc3 {[%clk 0:03:00]}  g6 {[%clk 0:02:57]} 6. O-O {[%clk 0:03:00]}  Bg7 {[%clk 0:02:58]} 7. a5 {[%clk 0:03:00]}  a6 {[%clk 0:02:54]} 8. Be2 {[%clk 0:03:00]}  b5 {[%clk 0:02:49]} 9. axb6 {[%clk 0:02:59]}  O-O {[%clk 0:02:39]} 10. d3 {[%clk 0:02:59]}  Bb7 {[%clk 0:02:33]} 11. Qd2 {[%clk 0:02:58]}  Nxb6 {[%clk 0:02:31]} 12. Qg5 {[%clk 0:02:54]}  a5 {[%clk 0:02:28]} 13. Qh4 {[%clk 0:02:53]}  Nfd7 {[%clk 0:02:07]} 14. Bh6 {[%clk 0:02:15]}  e6 {[%clk 0:02:05]} 15. Ng5 {[%clk 0:02:04]}  Qf6 {[%clk 0:01:48]} 16. f4 {[%clk 0:01:31]}  Bxh6 {[%clk 0:01:48]} 17. Qxh6 {[%clk 0:01:32]}  Qg7 {[%clk 0:01:48]} 18. Qh3 {[%clk 0:01:31]}  h6 {[%clk 0:01:46]} 19. Nf3 {[%clk 0:01:28]}  f5 {[%clk 0:01:45]} 20. Nd2 {[%clk 0:01:00]}  a4 {[%clk 0:01:34]} 21. Ra3 {[%clk 0:00:51]}  d5 {[%clk 0:01:28]} 22. e5 {[%clk 0:00:41]}  d4 {[%clk 0:01:22]} 23. Nb5 {[%clk 0:00:39]}  g5 {[%clk 0:01:21]} 24. Nc7 {[%clk 0:00:35]}  Nd5 {[%clk 0:00:41]} 25. Nxe6 {[%clk 0:00:27]}  Nxf4 {[%clk 0:00:41]} 26. Rxf4 {[%clk 0:00:23]}  Qxe5 {[%clk 0:00:38]} 27. Nxf8 {[%clk 0:00:20]}  gxf4 {[%clk 0:00:30]} 28. Nxd7 {[%clk 0:00:14]}  Qxe2 {[%clk 0:00:25]} 29. Nf1 {[%clk 0:00:14]}  f3 {[%clk 0:00:18]} 30. Qg3+ {[%clk 0:00:11]}  Kh8 {[%clk 0:00:12]} 31. Qf2 {[%clk 0:00:11]}  Rg8 {[%clk 0:00:10]} 32. g3 {[%clk 0:00:09]}  Qe7 {[%clk 0:00:10]} 33. Nb6 {[%clk 0:00:09]}  f4 {[%clk 0:00:09]} 34. Ra1 {[%clk 0:00:08]}  h5 {[%clk 0:00:08]} 35. Re1 {[%clk 0:00:07]}  Qc7 {[%clk 0:00:06]} 36. Re6 {[%clk 0:00:05]}  Kh7 {[%clk 0:00:03]} 37. Nc4 {[%clk 0:00:03]}  Qf7 {[%clk 0:00:02]} 38. Re5 {[%clk 0:00:03]}  h4 {[%clk 0:00:03]} 39. Re4 {[%clk 0:00:01]}  fxg3 {[%clk 0:00:03]} 40. hxg3 {[%clk 0:00:02]}  hxg3 {[%clk 0:00:03]} 41. Nxg3 {[%clk 0:00:02]}  Qg6 {[%clk 0:00:03]} 42. Qh2+ {[%clk 0:00:02]}  Kg7 {[%clk 0:00:03]} 43. Kf2 {[%clk 0:00:03]}  Rh8 {[%clk 0:00:03]} 44. Qg1 {[%clk 0:00:02]}  Bc8 {[%clk 0:00:02]} 45. Re5 {[%clk 0:00:02]}  Bg4 {[%clk 0:00:02]} 46. Nf5+ {[%clk 0:00:02]}  Bxf5 {[%clk 0:00:02]} 47. Rxf5 {[%clk 0:00:03]}  Qxg1+ {[%clk 0:00:02]} 48. Kxg1 {[%clk 0:00:04]}  Kg6 {[%clk 0:00:03]} 49. Rxf3 {[%clk 0:00:04]}  Re8 {[%clk 0:00:04]} 50. Rg3+ {[%clk 0:00:04]}  Kf5 {[%clk 0:00:04]} 51. Kf2 {[%clk 0:00:05]}  Kf4 {[%clk 0:00:03]} 52. Rf3+ {[%clk 0:00:06]}  Kg4 {[%clk 0:00:04]} 53. Rf7 {[%clk 0:00:05]}  Rh8 {[%clk 0:00:04]} 54. Rg7+ {[%clk 0:00:06]}  Kf4 {[%clk 0:00:04]} 55. Rg2 {[%clk 0:00:06]}  Rb8 {[%clk 0:00:04]} 56. Ke2 {[%clk 0:00:06]}  Re8+ {[%clk 0:00:04]} 57. Kd2 {[%clk 0:00:07]}  Kf3 {[%clk 0:00:05]} 58. Rh2 {[%clk 0:00:07]}  Rg8 {[%clk 0:00:05]} 59. Rh1 {[%clk 0:00:05]}  Rg2+ {[%clk 0:00:04]} 60. Kc1 {[%clk 0:00:05]}  Ke2 {[%clk 0:00:05]} 61. Rd1 {[%clk 0:00:05]}  Rh2 {[%clk 0:00:04]} 62. Rd2+ {[%clk 0:00:06]}  Ke1 {[%clk 0:00:02]} 63. Rxh2 {[%clk 0:00:06]} 1-0


[Site "https://www.chess.com"]

[Event "Titled Tuesday Blitz August 1 Early 2023"]
[White "Rendle, Thomas E"]
[Black "NigelDwarf"]
[WhiteFideId "408760"]
[WhiteElo "2673"]
[BlackElo "2523"]
[Result "1-0"]
[Round "5"]
[TimeControl "180+1"]
[Date "2023.08.01"]
[WhiteClock "0:01:58"]
[BlackClock "0:00:23"]
[Board "77"]

1. e4 {[%clk 0:03:00]}  c5 {[%clk 0:02:58]} 2. Be2 {[%clk 0:02:59]}  Nc6 {[%clk 0:02:53]} 3. f4 {[%clk 0:02:58]}  e6 {[%clk 0:02:51]} 4. Nf3 {[%clk 0:02:58]}  Nge7 {[%clk 0:02:51]} 5. O-O {[%clk 0:02:55]}  g6 {[%clk 0:02:51]} 6. d4 {[%clk 0:02:55]}  cxd4 {[%clk 0:02:49]} 7. Nxd4 {[%clk 0:02:55]}  Bg7 {[%clk 0:02:49]} 8. Be3 {[%clk 0:02:48]}  d5 {[%clk 0:02:44]} 9. e5 {[%clk 0:02:46]}  O-O {[%clk 0:02:40]} 10. Nc3 {[%clk 0:02:43]}  a6 {[%clk 0:02:37]} 11. Kh1 {[%clk 0:02:38]}  Nxd4 {[%clk 0:02:21]} 12. Bxd4 {[%clk 0:02:37]}  Nf5 {[%clk 0:02:21]} 13. Bc5 {[%clk 0:02:34]}  Re8 {[%clk 0:02:20]} 14. Bd3 {[%clk 0:02:32]}  b6 {[%clk 0:01:53]} 15. Bf2 {[%clk 0:02:25]}  Bb7 {[%clk 0:01:48]} 16. Na4 {[%clk 0:02:18]}  b5 {[%clk 0:01:32]} 17. Nc5 {[%clk 0:02:18]}  Bc6 {[%clk 0:01:31]} 18. Bxf5 {[%clk 0:02:10]}  gxf5 {[%clk 0:01:29]} 19. Bd4 {[%clk 0:02:06]}  Kh8 {[%clk 0:01:27]} 20. Qh5 {[%clk 0:02:05]}  f6 {[%clk 0:00:55]} 21. Rf3 {[%clk 0:02:00]}  Ra7 {[%clk 0:00:23]} 22. Rh3 {[%clk 0:01:58]} 1-0


[Site "https://www.chess.com"]

[Event "Titled Tuesday Blitz August 1 Early 2023"]
[White "Lewicki, Miroslaw"]
[Black "Di Nicolantonio, Lucas"]
[WhiteFideId "1113380"]
[BlackFideId "680460"]
[WhiteElo "2651"]
[BlackElo "2518"]
[Result "1-0"]
[Round "5"]
[TimeControl "180+1"]
[Date "2023.08.01"]
[WhiteClock "0:00:20"]
[BlackClock "0:00:05"]
[Board "79"]

1. g3 {[%clk 0:02:58]}  g6 {[%clk 0:02:59]} 2. Bg2 {[%clk 0:02:59]}  Bg7 {[%clk 0:03:00]} 3. Nf3 {[%clk 0:02:58]}  d6 {[%clk 0:03:00]} 4. O-O {[%clk 0:02:58]}  f5 {[%clk 0:03:01]} 5. c4 {[%clk 0:02:59]}  Nf6 {[%clk 0:03:01]} 6. Nc3 {[%clk 0:02:59]}  O-O {[%clk 0:03:02]} 7. d4 {[%clk 0:02:59]}  Nc6 {[%clk 0:03:03]} 8. d5 {[%clk 0:02:59]}  Ne5 {[%clk 0:03:03]} 9. Nxe5 {[%clk 0:02:58]}  dxe5 {[%clk 0:03:04]} 10. e4 {[%clk 0:02:56]}  f4 {[%clk 0:03:05]} 11. gxf4 {[%clk 0:02:56]}  exf4 {[%clk 0:03:06]} 12. e5 {[%clk 0:02:49]}  Ng4 {[%clk 0:02:52]} 13. e6 {[%clk 0:02:49]}  Ne5 {[%clk 0:02:52]} 14. Qb3 {[%clk 0:02:11]}  f3 {[%clk 0:02:49]} 15. Bh3 {[%clk 0:02:11]}  Qe8 {[%clk 0:02:40]} 16. Kh1 {[%clk 0:01:29]}  g5 {[%clk 0:02:41]} 17. Rg1 {[%clk 0:01:19]}  Qh5 {[%clk 0:02:41]} 18. Bf1 {[%clk 0:01:19]}  g4 {[%clk 0:02:41]} 19. Ne4 {[%clk 0:01:10]}  b5 {[%clk 0:02:16]} 20. Qxb5 {[%clk 0:00:56]}  c6 {[%clk 0:02:17]} 21. Qb3 {[%clk 0:00:47]}  a5 {[%clk 0:02:12]} 22. Qe3 {[%clk 0:00:41]}  Ba6 {[%clk 0:02:04]} 23. Qg5 {[%clk 0:00:36]}  Qxg5 {[%clk 0:02:04]} 24. Bxg5 {[%clk 0:00:36]}  cxd5 {[%clk 0:01:53]} 25. cxd5 {[%clk 0:00:34]}  Bxf1 {[%clk 0:01:54]} 26. Rgxf1 {[%clk 0:00:34]}  Rfe8 {[%clk 0:01:30]} 27. b3 {[%clk 0:00:29]}  a4 {[%clk 0:01:25]} 28. b4 {[%clk 0:00:28]}  a3 {[%clk 0:01:26]} 29. Rab1 {[%clk 0:00:27]}  Rac8 {[%clk 0:01:13]} 30. Rfc1 {[%clk 0:00:25]}  Nd3 {[%clk 0:01:03]} 31. Rxc8 {[%clk 0:00:22]}  Rxc8 {[%clk 0:01:04]} 32. Bxe7 {[%clk 0:00:22]}  Nxb4 {[%clk 0:00:07]} 33. Bxb4 {[%clk 0:00:20]}  Rc4 {[%clk 0:00:06]} 34. d6 {[%clk 0:00:20]}  Rxe4 {[%clk 0:00:06]} 35. d7 {[%clk 0:00:20]}  Bf6 {[%clk 0:00:07]} 36. e7 {[%clk 0:00:20]}  Bxe7 {[%clk 0:00:05]} 37. Bxe7 {[%clk 0:00:20]} 1-0


[Site "https://www.chess.com"]

[Event "Titled Tuesday Blitz August 1 Early 2023"]
[White "Timerkhanov, Alexander"]
[Black "feuervogel1000000"]
[WhiteFideId "24177938"]
[WhiteElo "2648"]
[BlackElo "2513"]
[Result "0-1"]
[Round "5"]
[TimeControl "180+1"]
[Date "2023.08.01"]
[WhiteClock "0:00:53"]
[BlackClock "0:00:19"]
[Board "80"]

1. d4 {[%clk 0:03:00]}  Nf6 {[%clk 0:02:59]} 2. Bg5 {[%clk 0:03:01]}  d5 {[%clk 0:02:57]} 3. Nd2 {[%clk 0:03:00]}  c5 {[%clk 0:02:55]} 4. e3 {[%clk 0:03:01]}  Nc6 {[%clk 0:02:55]} 5. c3 {[%clk 0:03:01]}  e6 {[%clk 0:02:51]} 6. Ngf3 {[%clk 0:03:00]}  Be7 {[%clk 0:02:48]} 7. Bd3 {[%clk 0:03:00]}  O-O {[%clk 0:02:46]} 8. O-O {[%clk 0:03:00]}  b6 {[%clk 0:02:46]} 9. Ne5 {[%clk 0:03:01]}  Nxe5 {[%clk 0:02:41]} 10. dxe5 {[%clk 0:03:02]}  Nd7 {[%clk 0:02:41]} 11. Bxe7 {[%clk 0:03:02]}  Qxe7 {[%clk 0:02:41]} 12. f4 {[%clk 0:03:03]}  f6 {[%clk 0:02:39]} 13. exf6 {[%clk 0:03:03]}  Nxf6 {[%clk 0:02:39]} 14. e4 {[%clk 0:03:04]}  dxe4 {[%clk 0:02:27]} 15. Nxe4 {[%clk 0:03:03]}  Bb7 {[%clk 0:02:27]} 16. Qe2 {[%clk 0:02:51]}  Rad8 {[%clk 0:02:21]} 17. Rad1 {[%clk 0:02:11]}  Bd5 {[%clk 0:01:48]} 18. a3 {[%clk 0:02:02]}  c4 {[%clk 0:01:44]} 19. Bc2 {[%clk 0:02:02]}  Qb7 {[%clk 0:01:25]} 20. Ng5 {[%clk 0:01:59]}  Rde8 {[%clk 0:01:23]} 21. Nf3 {[%clk 0:01:32]}  Qc7 {[%clk 0:01:11]} 22. Ne5 {[%clk 0:01:31]}  Nd7 {[%clk 0:01:06]} 23. Nxd7 {[%clk 0:01:29]}  Qxd7 {[%clk 0:01:06]} 24. Qxc4 {[%clk 0:01:30]}  Bxc4 {[%clk 0:01:05]} 25. Rxd7 {[%clk 0:01:29]}  Bxf1 {[%clk 0:01:05]} 26. Kxf1 {[%clk 0:01:29]}  Rxf4+ {[%clk 0:01:05]} 27. Ke2 {[%clk 0:01:29]}  Ref8 {[%clk 0:00:55]} 28. Bb3 {[%clk 0:01:29]}  Rf2+ {[%clk 0:00:50]} 29. Ke3 {[%clk 0:01:29]}  Rxb2 {[%clk 0:00:50]} 30. Bxe6+ {[%clk 0:01:30]}  Kh8 {[%clk 0:00:50]} 31. Rxa7 {[%clk 0:01:30]}  Re8 {[%clk 0:00:49]} 32. Kd4 {[%clk 0:01:30]}  Rd2+ {[%clk 0:00:49]} 33. Kc4 {[%clk 0:01:30]}  Rxg2 {[%clk 0:00:48]} 34. Rb7 {[%clk 0:01:26]}  Rxh2 {[%clk 0:00:46]} 35. Bd7 {[%clk 0:01:24]}  Rd8 {[%clk 0:00:45]} 36. Rxb6 {[%clk 0:01:24]}  g6 {[%clk 0:00:43]} 37. Bc6 {[%clk 0:01:22]}  Kg7 {[%clk 0:00:39]} 38. a4 {[%clk 0:01:23]}  Ra2 {[%clk 0:00:37]} 39. Kb3 {[%clk 0:01:13]}  Ra1 {[%clk 0:00:36]} 40. Kb2 {[%clk 0:01:13]}  Rdd1 {[%clk 0:00:37]} 41. Bb5 {[%clk 0:01:03]}  h5 {[%clk 0:00:35]} 42. c4 {[%clk 0:01:04]}  Rab1+ {[%clk 0:00:32]} 43. Kc2 {[%clk 0:01:02]}  Rbc1+ {[%clk 0:00:31]} 44. Kb2 {[%clk 0:01:02]}  Rb1+ {[%clk 0:00:31]} 45. Kc2 {[%clk 0:01:02]}  h4 {[%clk 0:00:30]} 46. a5 {[%clk 0:01:02]}  Rbc1+ {[%clk 0:00:29]} 47. Kb2 {[%clk 0:01:02]}  Ra1 {[%clk 0:00:29]} 48. Rb7+ {[%clk 0:01:01]}  Kh6 {[%clk 0:00:28]} 49. Rb8 {[%clk 0:01:01]}  Rxa5 {[%clk 0:00:27]} 50. Rh8+ {[%clk 0:00:58]}  Kg5 {[%clk 0:00:27]} 51. Kc3 {[%clk 0:00:55]}  h3 {[%clk 0:00:25]} 52. Kb4 {[%clk 0:00:56]}  Rxb5+ {[%clk 0:00:18]} 53. Kxb5 {[%clk 0:00:54]}  Kg4 {[%clk 0:00:19]} 54. c5 {[%clk 0:00:54]}  g5 {[%clk 0:00:18]} 55. c6 {[%clk 0:00:54]}  Rb1+ {[%clk 0:00:19]} 56. Kc5 {[%clk 0:00:54]}  Rc1+ {[%clk 0:00:18]} 57. Kd6 {[%clk 0:00:54]}  Kg3 {[%clk 0:00:18]} 58. c7 {[%clk 0:00:55]}  g4 {[%clk 0:00:19]} 59. Rh5 {[%clk 0:00:55]}  h2 {[%clk 0:00:19]} 60. Rc5 {[%clk 0:00:54]}  Rxc5 {[%clk 0:00:17]} 61. Kxc5 {[%clk 0:00:55]}  h1=Q {[%clk 0:00:17]} 62. c8=Q {[%clk 0:00:56]}  Qc1+ {[%clk 0:00:18]} 63. Kd6 {[%clk 0:00:53]}  Qxc8 {[%clk 0:00:19]} 0-1


[Site "https://www.chess.com"]

[Event "Titled Tuesday Blitz August 1 Early 2023"]
[White "Gaal, Zsoka"]
[Black "Hua, Lefong"]
[WhiteFideId "777765"]
[BlackFideId "2602253"]
[WhiteElo "2469"]
[BlackElo "2644"]
[Result "0-1"]
[Round "5"]
[TimeControl "180+1"]
[Date "2023.08.01"]
[WhiteClock "0:00:06"]
[BlackClock "0:01:02"]
[Board "81"]

1. Nf3 {[%clk 0:03:00]}  Nf6 {[%clk 0:03:00]} 2. g3 {[%clk 0:03:00]}  g6 {[%clk 0:03:00]} 3. b3 {[%clk 0:02:59]}  Bg7 {[%clk 0:03:01]} 4. Bb2 {[%clk 0:03:00]}  O-O {[%clk 0:03:01]} 5. Bg2 {[%clk 0:03:01]}  c5 {[%clk 0:03:02]} 6. c4 {[%clk 0:03:00]}  Nc6 {[%clk 0:03:02]} 7. O-O {[%clk 0:03:00]}  d6 {[%clk 0:03:01]} 8. d4 {[%clk 0:03:00]}  Ne4 {[%clk 0:03:00]} 9. Nbd2 {[%clk 0:02:59]}  Bf5 {[%clk 0:02:53]} 10. Nh4 {[%clk 0:02:46]}  Nxd2 {[%clk 0:02:49]} 11. Qxd2 {[%clk 0:02:47]}  Nxd4 {[%clk 0:02:41]} 12. Bxd4 {[%clk 0:02:41]}  cxd4 {[%clk 0:02:37]} 13. Nxf5 {[%clk 0:02:41]}  gxf5 {[%clk 0:02:37]} 14. Bxb7 {[%clk 0:02:41]}  Rb8 {[%clk 0:02:37]} 15. Bg2 {[%clk 0:02:38]}  e6 {[%clk 0:02:34]} 16. Qd3 {[%clk 0:02:36]}  a5 {[%clk 0:02:29]} 17. Rab1 {[%clk 0:02:35]}  Qb6 {[%clk 0:02:29]} 18. h3 {[%clk 0:02:07]}  Qc5 {[%clk 0:02:27]} 19. Kh2 {[%clk 0:01:55]}  Rb6 {[%clk 0:02:26]} 20. Rg1 {[%clk 0:01:52]}  Rfb8 {[%clk 0:02:21]} 21. f4 {[%clk 0:01:45]}  Qa3 {[%clk 0:01:59]} 22. g4 {[%clk 0:01:28]}  Qxa2 {[%clk 0:01:57]} 23. gxf5 {[%clk 0:01:26]}  Rxb3 {[%clk 0:01:53]} 24. fxe6 {[%clk 0:01:02]}  fxe6 {[%clk 0:01:36]} 25. Rxb3 {[%clk 0:00:55]}  Qxb3 {[%clk 0:01:36]} 26. Qe4 {[%clk 0:00:41]}  Qe3 {[%clk 0:01:30]} 27. Qf3 {[%clk 0:00:18]}  Qxf3 {[%clk 0:01:26]} 28. Bxf3 {[%clk 0:00:19]}  Rb4 {[%clk 0:01:17]} 29. f5 {[%clk 0:00:19]}  exf5 {[%clk 0:01:13]} 30. Bd5+ {[%clk 0:00:19]}  Kf8 {[%clk 0:01:13]} 31. Ra1 {[%clk 0:00:20]}  d3 {[%clk 0:01:05]} 32. Rxa5 {[%clk 0:00:09]}  dxe2 {[%clk 0:01:03]} 33. Ra8+ {[%clk 0:00:10]}  Ke7 {[%clk 0:01:03]} 34. Ra7+ {[%clk 0:00:10]}  Kf6 {[%clk 0:01:01]} 35. Rf7+ {[%clk 0:00:10]}  Kg6 {[%clk 0:01:02]} 36. Re7 {[%clk 0:00:06]}  Be5+ {[%clk 0:01:02]} 0-1


[Site "https://www.chess.com"]

[Event "Titled Tuesday Blitz August 1 Early 2023"]
[White "Bogaudinov, Rushan"]
[Black "Guerra Tulcan, Lenin"]
[WhiteFideId "4129288"]
[BlackFideId "3601382"]
[WhiteElo "2431"]
[BlackElo "2621"]
[Result "0-1"]
[Round "5"]
[TimeControl "180+1"]
[Date "2023.08.01"]
[WhiteClock "0:00:05"]
[BlackClock "0:00:14"]
[Board "83"]

1. e4 {[%clk 0:03:00]}  c5 {[%clk 0:02:54]} 2. Nf3 {[%clk 0:02:59]}  e6 {[%clk 0:02:53]} 3. g3 {[%clk 0:02:59]}  Nc6 {[%clk 0:02:45]} 4. Bg2 {[%clk 0:02:58]}  Nf6 {[%clk 0:02:35]} 5. Nc3 {[%clk 0:02:57]}  Be7 {[%clk 0:02:20]} 6. O-O {[%clk 0:02:56]}  d6 {[%clk 0:02:04]} 7. Re1 {[%clk 0:02:54]}  O-O {[%clk 0:01:43]} 8. d3 {[%clk 0:02:49]}  a6 {[%clk 0:01:40]} 9. a4 {[%clk 0:02:49]}  b6 {[%clk 0:01:36]} 10. b3 {[%clk 0:02:43]}  Bb7 {[%clk 0:01:35]} 11. Bb2 {[%clk 0:02:43]}  Re8 {[%clk 0:01:35]} 12. Qd2 {[%clk 0:02:33]}  Bf8 {[%clk 0:01:35]} 13. Ng5 {[%clk 0:02:27]}  h6 {[%clk 0:01:35]} 14. Nf3 {[%clk 0:02:22]}  Rc8 {[%clk 0:01:35]} 15. Nh4 {[%clk 0:02:14]}  Nd4 {[%clk 0:01:33]} 16. f4 {[%clk 0:02:11]}  Qc7 {[%clk 0:01:32]} 17. Rac1 {[%clk 0:02:06]}  Qb8 {[%clk 0:01:31]} 18. Ne2 {[%clk 0:02:04]}  e5 {[%clk 0:01:30]} 19. fxe5 {[%clk 0:01:53]}  dxe5 {[%clk 0:01:30]} 20. Rf1 {[%clk 0:01:46]}  Nh7 {[%clk 0:01:17]} 21. Rf2 {[%clk 0:01:25]}  b5 {[%clk 0:01:11]} 22. axb5 {[%clk 0:01:25]}  axb5 {[%clk 0:01:11]} 23. Rcf1 {[%clk 0:01:24]}  f6 {[%clk 0:01:11]} 24. Nc3 {[%clk 0:01:10]}  c4 {[%clk 0:01:08]} 25. bxc4 {[%clk 0:00:50]}  bxc4 {[%clk 0:01:09]} 26. Bh3 {[%clk 0:00:47]}  Rcd8 {[%clk 0:00:53]} 27. Ne2 {[%clk 0:00:24]}  cxd3 {[%clk 0:00:26]} 28. cxd3 {[%clk 0:00:22]}  Nb3 {[%clk 0:00:23]} 29. Qc2 {[%clk 0:00:19]}  Ba6 {[%clk 0:00:24]} 30. Rd1 {[%clk 0:00:16]}  Ng5 {[%clk 0:00:23]} 31. Bg2 {[%clk 0:00:13]}  Bc5 {[%clk 0:00:23]} 32. Nf5 {[%clk 0:00:12]}  Bxf2+ {[%clk 0:00:21]} 33. Kxf2 {[%clk 0:00:13]}  Qa7+ {[%clk 0:00:20]} 34. Kf1 {[%clk 0:00:12]}  Qc5 {[%clk 0:00:19]} 35. Qxb3+ {[%clk 0:00:12]}  Kh7 {[%clk 0:00:19]} 36. Ba3 {[%clk 0:00:10]}  Qa5 {[%clk 0:00:17]} 37. h4 {[%clk 0:00:09]}  Ne6 {[%clk 0:00:17]} 38. d4 {[%clk 0:00:08]}  exd4 {[%clk 0:00:17]} 39. Nxd4 {[%clk 0:00:08]}  Nxd4 {[%clk 0:00:17]} 40. Bf3 {[%clk 0:00:06]}  Nxf3 {[%clk 0:00:16]} 41. Qxf3 {[%clk 0:00:06]}  Rxd1+ {[%clk 0:00:15]} 42. Kf2 {[%clk 0:00:06]}  Bxe2 {[%clk 0:00:15]} 43. Kxe2 {[%clk 0:00:05]}  Qd2# {[%clk 0:00:14]} 0-1


[Site "https://www.chess.com"]